[Event "Olomouc Chess Summer Open 2022"]
[Site "Olomouc"]
[Date "2022.08.17"]
[Round "6.16"]
[White "Marek, Matyas"]
[Black "Muzika, Paul"]
[Result "1/2-1/2"]
[ECO "A06"]
[WhiteElo "2354"]
[BlackElo "2072"]
[Annotator "TA"]
[PlyCount "93"]
[EventDate "2022.08.14"]
[EventCountry "CZE"]
[SourceTitle "playchess.com"]
[Source "ChessBase"]
[SourceQuality "1"]
[TimeControl "40/5400+30:1800+30"]

{[%evp 16,93,14,0,3,0,0,-25,-17,-29,-22,-24,-6,-25,0,-2,0,0,-2,-12,-8,-15,-13,-10,-14,-36,0,-2,14,9,11,11,22,20,24,22,28,28,28,28,28,28,62,28,27,28,35,33,37,0,59,63,330,329,321,320,327,317,309,318,493,493,479,270,263,262,266,258,249,211,192,0,462,405,625,0,0,0,533,0]} 1. Nf3 {[%emt 0:00:04]} d5 {[%emt 0:00:19]} 2. g3 {[%emt 0:00:06]} Nf6 {[%emt 0:00:05]} 3. Bg2 {[%emt 0:00:02]} e6 {[%emt 0:00:09]} 4. O-O {[%emt 0:00:07]} Be7 {[%emt 0:00:04]} 5. d3 {[%emt 0:00:03]} O-O {[%emt 0:00:08]} 6. Nbd2 {[%emt 0:00:02]} Nc6 {[%emt 0:00:40]} 7. e4 {[%emt 0:00:11]} dxe4 {[%emt 0:00:08]} 8. dxe4 {[%emt 0:00:04]} e5 {[%emt 0:00:08]} 9. c3 {[%emt 0:01:00]} a5 $1 {[%emt 0:00:20] 9...a5 scores better than 9...Be6. A07: Réti Opening: New York and Capablanca Systems.} 10. Qc2 {[%emt 0:01:04]} Be6 {[%emt 0:00:11] Against Nc4} 11. a4 {[%emt 0:02:23]} Nd7 {[%emt 0:07:54] [#] Black has an edge.} 12. b3 $146 {[%emt 0:07:29]} ({Predecessor:} 12. Rd1 Qe8 13. Bf1 f6 14. Bc4 Qf7 15. Bxe6 Qxe6 16. Nf1 Bc5 17. Be3 Bxe3 18. Nxe3 {½-½ (60) Weber,S (2123)-Horn,P (2094) Kiel 2017}) 12... Qe8 {[%emt 0:09:48]} 13. Re1 {[%emt 0:07:39]} f6 {[%emt 0:01:11]} 14. Bf1 {[%emt 0:14:26]} Nb6 {[%emt 0:09:15]} 15. Nh4 {[%emt 0:03:20][%cal Bf3h4,Bh4f5,Bf5e3,Be3c4][%mdl 32]} Qf7 {[%emt 0:02:12]} 16. Nf5 {[%emt 0:01:32]} Bc5 {[%emt 0:06:09]} 17. Rb1 {[%emt 0:01:36]} Kh8 {[%emt 0:06:03]} 18. Nf3 {[%emt 0:06:06]} g6 {[%emt 0:06:46]} 19. Ne3 {[%emt 0:00:55]} Be7 {[%emt 0:04:16]} 20. Nd2 {[%emt 0:10:29]} Rfd8 {[%emt 0:03:08]} 21. Ndc4 {[%emt 0:06:19]} Nxc4 {[%emt 0:00:33]} 22. Bxc4 {[%emt 0:00:20]} Bxc4 {[%emt 0:00:15]} 23. Nxc4 {[%emt 0:00:04]} Bc5 {[%emt 0:00:59]} 24. Be3 {[%emt 0:01:05]} Bxe3 {[%emt 0:00:25]} 25. Nxe3 {[%emt 0:00:01]} Rd7 {[%emt 0:00:57]} 26. Rbd1 {[%emt 0:00:34]} Rad8 {[%emt 0:14:26]} 27. Rxd7 {[%emt 0:03:06]} Rxd7 {[%emt 0:01:10]} 28. Rd1 {[%emt 0:00:59]} Qe7 {[%emt 0:01:02]} 29. Rd5 {[%emt 0:01:46]} Rxd5 {[%emt 0:00:45]} 30. exd5 $11 {[%emt 0:01:56][%mdl 4096] Endgame KQN-KQN} Nd8 {[%emt 0:00:04]} 31. Qd3 {[%emt 0:01:52]} Qd7 {[%emt 0:02:30]} 32. Qc4 {[%emt 0:03:04]} b6 {[%emt 0:04:23] Inhibits Qc5.} ({Better is} 32... Kg7 $1 $11) 33. b4 $14 {[%emt 0:02:17][%cal Bb3b4,Bb4a5,Ba5a6,Ba6a7][%mdl 32] bxa5 is the strong threat.} Nb7 {[%emt 0:00:12][%mdl 8192]} ({Black should play} 33... Kg7 $1 $14) 34. Qa6 $18 {[%emt 0:02:41]} Nd6 {[%emt 0:00:57]} 35. bxa5 {[%emt 0:05:27]} Qxa4 {[%emt 0:00:49]} 36. Qa8+ {[%emt 0:00:08]} Kg7 {[%emt 0:02:55]} 37. a6 {[%emt 0:01:25] And now a7 would win.} (37. Qd8 Nf7 38. Qxc7 Qxa5 $11) 37... f5 {[%emt 0:00:13]} (37... Qa2 {was necessary.}) 38. a7 $1 {[%emt 0:05:20] Hoping for Qb8.} (38. Qd8 Qxa6 39. Qxc7+ Nf7 $11) 38... f4 {[%emt 0:00:32]} 39. Nf1 {[%emt 0:02:01]} (39. Qb8 fxe3 40. a8=Q (40. Qxc7+ Nf7 $11) 40... exf2+ 41. Kg2 (41. Kxf2 Qc2+ 42. Kg1 Qd1+ 43. Kg2 Qe2+ 44. Kg1 Qd1+ 45. Kg2 Qe2+ 46. Kg1 Qd1+ $11) 41... Qe4+ 42. Kxf2 Qf5+ 43. Kg1 Qb1+ 44. Kg2 Qc2+ 45. Kh3 Qf5+ 46. Kg2 Qc2+ 47. Kh3 Qf5+ 48. Kg2 Qc2+ $11) (39. gxf4 $142 exf4 40. Nf1 (40. Qb8 fxe3 41. a8=Q Qg4+ 42. Kf1 Qd1+ 43. Kg2 Qg4+ 44. Kf1 Qd1+ 45. Kg2 Qg4+ 46. Kf1 $11)) 39... Qa2 {[%emt 0:10:30] ( -> ...Ne4)} 40. Qb8 {[%emt 0:10:50]} Ne4 {[%emt 0:00:10]} 41. Qxc7+ {[%emt 0:00:17]} Kh6 {[%emt 0:00:00]} 42. Qxb6 {[%emt 0:01:02]} Ng5 {[%emt 0:06:10]} 43. Qc5 $2 {[%emt 0:15:35]} (43. h4 $1 $18 {[%cal Rh4g5]} Nf3+ 44. Kg2 (44. Kh1 Qxd5 45. c4 Qd7 $11) 44... Ne1+ 45. Kh3 Qxd5 46. f3 (46. Qf6 Qg2+ 47. Kg4 Qf3+ 48. Kh3 Qg2+ 49. Kg4 Qf3+ 50. Kh3 Qg2+ $11) 46... Nxf3 47. Qf2) 43... Nf3+ {[%emt 0:13:14][%mdl 8192]} (43... Qe2 $1 $11 {and Black is okay.}) 44. Kg2 {[%emt 0:00:29]} Ne1+ {[%emt 0:00:13] [#]} (44... Qe2 $142 45. Qf8+ Kg5 46. h4+ Kh5 47. g4+ (47. a8=Q Ne1+ 48. Kg1 Nf3+ 49. Kg2 Ne1+ 50. Kg1 Nf3+ 51. Kg2 $11) 47... Kxg4) 45. Kg1 $2 {[%emt 0:02:03]} (45. Kh1 $1 $18 {aiming for Qf8+.} Kh5 46. h3) 45... Nf3+ $1 $11 {[%emt 0:05:36]} 46. Kg2 $2 {[%emt 0:01:06][%mdl 8192]} (46. Kh1 $11 Qb1 47. Qc4 (47. Kg2 Qe4 $11)) 46... Ne1+ $18 {[%emt 0:00:17] [#]} 47. Kg1 $2 {[%emt 0:12:36] Weighted Error Value: White=0.25 (precise) /Black=0.41} (47. Kh1 $1 $18 Kh5 48. gxf4) 1/2-1/2

[Event "Olomouc Chess Summer Open 2022"]
[Site "Olomouc"]
[Date "2022.08.17"]
[Round "6.17"]
[White "Psaila, Clarence"]
[Black "Al-Ali, Hussein Ali Hussein"]
[Result "1/2-1/2"]
[ECO "A41"]
[WhiteElo "1956"]
[BlackElo "2262"]
[Annotator "NA RC"]
[PlyCount "170"]
[EventDate "2022.08.14"]
[EventCountry "CZE"]
[SourceTitle "playchess.com"]
[Source "ChessBase"]
[SourceQuality "1"]
[TimeControl "40/5400+30:1800+30"]

1. d4 {[%emt 0:00:03]} d6 {[%emt 0:00:08]} 2. Nf3 {[%emt 0:00:07]} Nf6 {[%emt 0:00:07]} 3. g3 {[%emt 0:00:07]} Nbd7 {[%emt 0:00:07]} 4. Bg2 {[%emt 0:01:15]} e5 {[%emt 0:00:09]} 5. dxe5 {[%emt 0:00:43]} dxe5 {[%emt 0:00:15]} 6. O-O {[%emt 0:01:50]} c6 {[%emt 0:02:37]} 7. b3 {[%emt 0:05:13]} Qc7 {[%emt 0:00:27]} 8. Ba3 {[%emt 0:01:40]} Bc5 {[%emt 0:01:20]} 9. Qc1 {[%emt 0:03:12]} O-O {[%emt 0:00:17]} 10. Bxc5 {[%emt 0:01:07]} Nxc5 {[%emt 0:00:05]} 11. Nc3 {[%emt 0:07:03]} e4 {[%emt 0:01:59]} 12. Nd4 {[%emt 0:02:57]} Qe5 {[%emt 0:00:26]} 13. e3 {[%emt 0:00:35]} a5 {[%emt 0:01:27]} 14. a4 {[%emt 0:01:10]} Re8 {[%emt 0:00:44]} 15. h3 {[%emt 0:01:10]} h5 {[%emt 0:00:50]} 16. Qd1 {[%emt 0:06:23]} h4 {[%emt 0:04:08]} 17. g4 {[%emt 0:03:52]} g6 {[%emt 0:01:26]} 18. Qe2 {[%emt 0:09:28]} Ne6 {[%emt 0:01:10]} 19. Rad1 {[%emt 0:11:35]} Ng5 {[%emt 0:00:13]} 20. f4 {[%emt 0:00:26]} exf3 {[%emt 0:00:08]} 21. Nxf3 {[%emt 0:00:11]} Nxf3+ {[%emt 0:00:49]} 22. Qxf3 {[%emt 0:00:26]} Qxc3 {[%emt 0:02:01]} 23. Qxf6 {[%emt 0:00:08]} Qxf6 {[%emt 0:01:38]} 24. Rxf6 {[%emt 0:00:02]} Kg7 {[%emt 0:00:10]} 25. Rfd6 {[%emt 0:06:59]} Be6 {[%emt 0:00:23]} 26. Kf2 {[%emt 0:05:10]} Rac8 {[%emt 0:02:52]} 27. R1d2 {[%emt 0:02:04]} Rc7 {[%emt 0:05:07]} 28. Bf3 {[%emt 0:04:07]} Kf8 {[%emt 0:00:34]} 29. Bg2 {[%emt 0:01:51]} Ke7 {[%emt 0:00:10]} 30. R6d3 {[%emt 0:10:47]} Rf8 {[%emt 0:00:49]} 31. c4 {[%emt 0:01:20]} Rb8 {[%emt 0:05:54]} 32. Ke2 {[%emt 0:03:48]} Rh8 {[%emt 0:07:50]} 33. Bf3 {[%emt 0:01:07]} f6 {[%emt 0:02:32]} 34. Kf2 {[%emt 0:01:24]} Rb8 {[%emt 0:02:11]} 35. Bg2 {[%emt 0:00:22]} Rf8 {[%emt 0:01:05]} 36. Ke2 {[%emt 0:00:25]} g5 {[%emt 0:02:03]} 37. Be4 {[%emt 0:02:59]} Rd7 {[%emt 0:01:51]} 38. Bf5 {[%emt 0:02:31]} Rfd8 {[%emt 0:06:08]} 39. e4 {[%emt 0:01:48]} Rxd3 {[%emt 0:01:49]} 40. Rxd3 {[%emt 0:00:03]} Rxd3 {[%emt 0:00:27]} 41. Kxd3 {[%emt 0:30:02]} c5 {[%emt 0:31:35]} 42. Ke3 {[%emt 0:00:00]} Kd6 {[%emt 0:00:00]} 43. Bg6 {[%emt 0:00:00]} Ke5 {[%emt 0:00:00]} 44. Be8 {[%emt 0:00:00]} Kd6 {[%emt 0:00:00]} 45. Bg6 {[%emt 0:00:00]} Kc7 {[%emt 0:00:00]} 46. Be8 {[%emt 0:00:00]} Kd8 {[%emt 0:00:00]} 47. Bg6 {[%emt 0:00:00]} Ke7 {[%emt 0:00:00]} 48. Bh7 {[%emt 0:00:00]} Kd7 {[%emt 0:00:00]} 49. Bg6 {[%emt 0:00:00]} Kc7 {[%emt 0:00:00]} 50. Be8 {[%emt 0:00:00]} Bd7 {[%emt 0:00:00]} 51. Bf7 {[%emt 0:00:00]} Kd6 {[%emt 0:00:00]} 52. Bg6 {[%emt 0:00:00]} Ke7 {[%emt 0:00:00]} 53. Bh5 {[%emt 0:00:00]} Bc8 {[%emt 0:00:00]} 54. Bg6 {[%emt 0:00:00]} Be6 {[%emt 0:00:00]} 55. Bh7 {[%emt 0:00:00]} Kf7 {[%emt 0:00:00]} 56. Kf3 {[%emt 0:00:00]} Kf8 {[%emt 0:00:00]} 57. Bg6 {[%emt 0:00:00]} Bd7 {[%emt 0:00:00]} 58. Ke3 {[%emt 0:00:00]} Be6 {[%emt 0:00:00]} 59. Kf3 {[%emt 0:00:00]} Kg7 {[%emt 0:00:00]} 60. Bf5 {[%emt 0:00:00]} Kf7 {[%emt 0:00:00]} 61. Bh7 {[%emt 0:00:00]} Bd7 {[%emt 0:00:00]} 62. Ke3 {[%emt 0:00:00]} Be8 {[%emt 0:00:00]} 63. Bf5 {[%emt 0:00:00]} Kg7 {[%emt 0:00:00]} 64. Bc8 {[%emt 0:00:00]} Bc6 {[%emt 0:00:00]} 65. Be6 {[%emt 0:00:00]} b6 {[%emt 0:00:00]} 66. Bf5 {[%emt 0:00:00]} Kf7 {[%emt 0:00:00]} 67. Bc8 {[%emt 0:00:07]} Ke7 {[%emt 0:00:00]} 68. Bf5 {[%emt 0:00:13]} Kd6 {[%emt 0:00:27]} 69. Bg6 {[%emt 0:00:54]} Bd7 {[%emt 0:00:18]} 70. Bh7 {[%emt 0:00:50]} Be6 {[%emt 0:00:36]} 71. Bg6 {[%emt 0:00:11]} Bg8 {[%emt 0:03:07]} 72. Bf5 {[%emt 0:00:25]} Bf7 {[%emt 0:00:41]} 73. Bh7 {[%emt 0:00:36]} Ke5 {[%emt 0:02:01]} 74. Bf5 {[%emt 0:00:22]} Bg8 {[%emt 0:02:38]} 75. Bc8 {[%emt 0:00:51]} Be6 {[%emt 0:01:10]} 76. Bxe6 {[%emt 0:00:31]} Kxe6 {[%emt 0:00:05]} 77. Ke2 {[%emt 0:00:12]} Kd7 {[%emt 0:00:14]} 78. Kd3 {[%emt 0:00:20]} Kd6 {[%emt 0:00:25]} 79. Kd2 {[%emt 0:00:09]} Ke7 {[%emt 0:00:26]} 80. Ke3 {[%emt 0:00:22]} Ke6 {[%emt 0:00:42]} 81. Ke2 {[%emt 0:00:16]} Kd7 {[%emt 0:00:30]} 82. Kd3 {[%emt 0:00:07]} Kd6 {[%emt 0:00:06]} 83. Kd2 {[%emt 0:00:08]} Ke5 {[%emt 0:00:19]} 84. Ke3 {[%emt 0:00:02]} Ke6 {[%emt 0:01:21]} 85. Ke2 Ke5 1/2-1/2

[Event "Olomouc Chess Summer Open 2022"]
[Site "Olomouc"]
[Date "2022.08.17"]
[Round "6.18"]
[White "Houska, Jiri"]
[Black "Soban, Jaroslav"]
[Result "1-0"]
[ECO "B40"]
[WhiteElo "2220"]
[BlackElo "2101"]
[Annotator "TA"]
[PlyCount "105"]
[EventDate "2022.08.14"]
[EventCountry "CZE"]
[SourceTitle "playchess.com"]
[Source "ChessBase"]
[SourceQuality "1"]
[TimeControl "40/5400+30:1800+30"]

{[%evp 22,104,18,12,78,70,86,62,85,88,126,62,134,86,150,116,141,145,140,145,131,141,139,125,176,174,173,170,217,119,106,0,214,214,235,211,247,247,250,235,254,222,269,186,190,0,254,239,328,310,363,310,302,208,440,391,449,421,955,562,735,719,709,535,1668,1526,2384,2213,3025,348,424,417,410,403,29987,29988,29991,29992,29992,29993,29996,29997,29997,29998,29999]} 1. e4 {[%emt 0:00:36]} c5 {[%emt 0:00:08]} 2. Nf3 {[%emt 0:00:03][%cal Bg1f3,Bf3d4,Bd4b5][%mdl 32]} e6 {[%emt 0:00:07]} 3. d4 {[%emt 0:00:09]} cxd4 {[%emt 0:00:06]} 4. Nxd4 {[%emt 0:00:04]} Nf6 {[%emt 0:00:07]} 5. Nc3 {[%emt 0:00:14]} Nc6 {[%emt 0:00:08]} 6. Ndb5 {[%emt 0:00:46]} Bb4 {[%emt 0:00:20]} 7. a3 {[%emt 0:00:13]} Bxc3+ {[%emt 0:00:07]} 8. Nxc3 {[%emt 0:00:06]} d5 {[%emt 0:00:25]} 9. Bd3 {[%emt 0:01:57]} dxe4 {[%emt 0:06:22]} 10. Nxe4 {[%emt 0:00:14]} Nxe4 {[%emt 0:00:27]} 11. Bxe4 {[%emt 0:00:08]} Qxd1+ {[%emt 0:02:02]} 12. Kxd1 {[%emt 0:00:02]} f5 {[%emt 0:01:21] B45: Sicilian Four Knights.} (12... e5 $11) 13. Bxc6+ $16 {[%emt 0:08:22]} bxc6 {[%emt 0:00:25]} 14. c4 {[%emt 0:02:59] [#]} a5 $146 {[%emt 0:12:47] White is slightly better.} ({Predecessor:} 14... Kf7 15. Re1 Ba6 16. b3 Rad8+ 17. Kc2 Bc8 18. Bg5 Rd7 19. Rad1 h6 20. Be3 a6 21. Rxd7+ Bxd7 {1-0 (42) Stripunsky,A (2495)-Reichstein,B (2223) Virginia Beach 2001}) 15. a4 {[%emt 0:02:47]} Kf7 {[%emt 0:00:46]} 16. Kc2 {[%emt 0:00:55]} (16. Re1 $1 $16) 16... Rd8 {[%emt 0:03:41]} ({Black should play} 16... e5 $14) 17. Be3 {[%emt 0:08:32]} (17. Re1 $142) 17... Rb8 {[%emt 0:06:32]} ({Better is} 17... e5) 18. Rhd1 {[%emt 0:01:55]} Rd7 {[%emt 0:01:22]} 19. Rxd7+ {[%emt 0:00:25]} Bxd7 {[%emt 0:00:01][%mdl 4096] Endgame KRB-KRB} 20. Bd2 {[%emt 0:08:26]} Ra8 {[%emt 0:00:29]} 21. Re1 {[%emt 0:00:20]} Ke7 {[%emt 0:03:32]} 22. Re5 {[%emt 0:05:51]} Kd6 {[%emt 0:01:05]} (22... c5 $16) 23. Bf4 $1 $18 {[%emt 0:09:09]} (23. Rxa5 $6 Rxa5 24. Bxa5 c5 $16) 23... Ke7 {[%emt 0:00:30]} 24. b3 {[%emt 0:02:37]} g6 {[%emt 0:07:19]} (24... Be8 {was called for.} 25. Be3 Bh5) 25. Bd2 {[%emt 0:03:57]} (25. Rc5 $18) 25... Kd6 $16 {[%emt 0:00:06]} 26. Bf4 {[%emt 0:01:54] White is more active.} (26. Re3 $16) 26... Ke7 $18 {[%emt 0:00:01]} 27. Rc5 {[%emt 0:02:20]} Ra7 {[%emt 0:03:07]} 28. Bb8 {[%emt 0:00:37]} Rb7 {[%emt 0:00:44]} 29. Be5 {[%emt 0:00:07]} Ra7 {[%emt 0:00:21]} 30. f4 {[%emt 0:01:38]} Be8 {[%emt 0:05:55]} 31. g3 {[%emt 0:00:25]} Bd7 {[%emt 0:03:13]} 32. Bd4 {[%emt 0:03:11]} Ra6 {[%emt 0:02:25]} 33. Be5 {[%emt 0:06:46]} (33. Re5 $142) 33... Ra7 $1 {[%emt 0:00:46]} 34. h4 {[%emt 0:00:43]} Be8 {[%emt 0:02:06]} 35. Bc3 {[%emt 0:01:01]} Kd6 {[%emt 0:00:28]} 36. Rxa5 {[%emt 0:02:23]} Rxa5 {[%emt 0:00:03]} 37. Bxa5 {[%emt 0:00:01] KB-KB} c5 $2 {[%emt 0:01:49]} (37... e5 38. Bb4+ c5) 38. Bb6 {[%emt 0:02:32]} Bc6 {[%emt 0:07:57]} 39. Kc3 {[%emt 0:00:23]} Bb7 {[%emt 0:02:41]} (39... Bd7 $142 40. a5 Bc8 41. Bxc5+ Kxc5 42. b4+ Kc6) 40. Ba7 {[%emt 0:00:59]} Bc6 {[%emt 0:20:21] [#]} 41. Bxc5+ $1 {[%emt 0:50:01][%mdl 512]} Kxc5 {[%emt 0:31:02] KB-KP} 42. b4+ {[%emt 0:00:04][%cal Bb3b4,Bb4b5,Bb5b6,Bb6b7][%mdl 32]} Kb6 {[%emt 0:00:00]} 43. b5 {[%emt 0:00:00]} Be8 {[%emt 0:00:00]} 44. Kb4 {[%emt 0:00:00]} h5 {[%emt 0:00:00]} 45. c5+ $2 {[%emt 0:00:00]} (45. a5+ Kc7 46. a6) 45... Kc7 {[%emt 0:00:00][%cal Oe6e5] [#]} 46. c6 $1 {[%emt 0:00:00][%cal Bc5c6,Bc6c7][%mdl 32]} (46. a5 e5 $11) 46... e5 {[%emt 0:00:00] Strongly threatening ...e4.} 47. Kc5 {[%emt 0:00:00] Intending a5 and mate.} ({Less strong is} 47. fxe5 g5 48. Kc5 (48. hxg5 $2 f4 $19) 48... f4 49. gxf4 (49. hxg5 $2 fxg3 50. b6+ Kc8 $19) 49... gxh4 50. b6+ Kb8 $18) 47... e4 {[%emt 0:02:11] [#]} (47... Bxc6 $18 48. fxe5 (48. bxc6 e4 $11) 48... Bd7) 48. b6+ $1 {[%emt 0:00:00] White mates.} Kb8 {[%emt 0:01:37]} 49. a5 {[%emt 0:00:57][%cal Ba4a5,Ba5a6][%mdl 32]} e3 {[%emt 0:03:28]} 50. a6 {[%emt 0:00:20]} e2 {[%emt 0:03:03]} 51. c7+ {[%emt 0:00:50]} Kc8 {[%emt 0:00:06]} 52. Kd6 {[%emt 0:02:45][%csl Ga6][%cal Rb6b7]} e1=Q {[%emt 0:00:42]} 53. b7# {Weighted Error Value: White=0.47/Black=0.45} 1-0

[Event "Olomouc Chess Summer Open 2022"]
[Site "Olomouc"]
[Date "2022.08.17"]
[Round "6.19"]
[White "Cagasik, Tomas"]
[Black "Jordanov, Mihail"]
[Result "0-1"]
[ECO "A05"]
[WhiteElo "2143"]
[BlackElo "2158"]
[Annotator "NA RC"]
[PlyCount "93"]
[EventDate "2022.08.14"]
[EventCountry "CZE"]
[SourceTitle "playchess.com"]
[Source "ChessBase"]
[SourceQuality "1"]
[TimeControl "40/5400+30:1800+30"]

1. Nf3 {[%emt 0:09:58]} Nf6 {[%emt 0:02:02]} 2. b3 {[%emt 0:00:16]} d6 {[%emt 0:03:43]} 3. d4 {[%emt 0:00:08]} c6 {[%emt 0:00:18]} 4. Bb2 {[%emt 0:01:09]} d5 {[%emt 0:01:09]} 5. e3 {[%emt 0:00:46]} Bf5 {[%emt 0:02:47]} 6. Bd3 {[%emt 0:00:34]} e6 {[%emt 0:02:18]} 7. Ne5 {[%emt 0:01:24]} Bd6 {[%emt 0:02:49]} 8. Nd2 {[%emt 0:08:39]} Nbd7 {[%emt 0:08:24]} 9. g4 {[%emt 0:04:25]} Bxd3 {[%emt 0:07:13]} 10. cxd3 {[%emt 0:03:09]} Qc7 11. f4 {[%emt 0:02:21]} Ng8 {[%emt 0:16:10]} 12. g5 {[%emt 0:07:09]} Ne7 {[%emt 0:11:10]} 13. h4 {[%emt 0:10:25]} h6 {[%emt 0:12:20]} 14. Qf3 {[%emt 0:03:08]} Nxe5 {[%emt 0:04:11]} 15. dxe5 {[%emt 0:07:38]} Bc5 {[%emt 0:01:48]} 16. e4 {[%emt 0:06:19]} O-O-O {[%emt 0:02:36]} 17. a3 {[%emt 0:04:59]} Qb6 {[%emt 0:05:57]} 18. exd5 {[%emt 0:01:45]} Nxd5 {[%emt 0:03:34]} 19. b4 {[%emt 0:00:49]} Ne3 {[%emt 0:03:19]} 20. Ke2 {[%emt 0:02:05]} Qb5 {[%emt 0:01:38]} 21. Qe4 {[%emt 0:00:23]} Nc2 {[%emt 0:02:15]} 22. Qc4 {[%emt 0:12:53]} Nxa1 {[%emt 0:01:56]} 23. Qxb5 {[%emt 0:00:30]} cxb5 {[%emt 0:00:02]} 24. bxc5 {[%emt 0:00:11]} Nc2 {[%emt 0:00:17]} 25. Ne4 {[%emt 0:01:59]} Nd4+ {[%emt 0:00:53]} 26. Bxd4 {[%emt 0:00:08]} Rxd4 {[%emt 0:00:01]} 27. Nd6+ {[%emt 0:00:11]} Kd7 {[%emt 0:00:15]} 28. Ke3 {[%emt 0:01:43]} Ra4 {[%emt 0:00:22]} 29. gxh6 {[%emt 0:04:05]} gxh6 {[%emt 0:03:55]} 30. Nxb5 {[%emt 0:02:27]} Rg8 31. Kf3 Kc6 {[%emt 0:01:23]} 32. Nd6 {[%emt 0:01:28]} Rxa3 {[%emt 0:00:10]} 33. Nxf7 {[%emt 0:01:08]} Rxd3+ {[%emt 0:00:29]} 34. Ke4 {[%emt 0:01:01]} Rgg3 {[%emt 0:00:23]} 35. Re1 {[%emt 0:00:08]} Kxc5 {[%emt 0:00:42]} 36. Rc1+ {[%emt 0:00:05]} Kb6 {[%emt 0:00:51]} 37. Re1 {[%emt 0:00:37]} Rb3 {[%emt 0:00:41]} 38. Rd1 {[%emt 0:00:35]} Kc5 {[%emt 0:00:31]} 39. Rc1+ {[%emt 0:00:07]} Kb6 {[%emt 0:00:11]} 40. Rd1 {[%emt 0:00:02]} Rb4+ {[%emt 0:00:49]} 41. Rd4 {[%emt 0:30:03]} Rxd4+ {[%emt 0:01:45]} 42. Kxd4 {[%emt 0:00:00]} Rg4 {[%emt 0:00:10]} 43. Ke4 {[%emt 0:00:00]} Kc7 {[%emt 0:00:47]} 44. h5 {[%emt 0:00:00]} Rh4 {[%emt 0:01:16]} 45. Nxh6 {[%emt 0:00:00]} Rxh5 {[%emt 0:00:11]} 46. Nf7 {[%emt 0:00:00]} a5 {[%emt 0:00:25]} 47. Kd4 0-1

[Event "Olomouc Chess Summer Open 2022"]
[Site "Olomouc"]
[Date "2022.08.17"]
[Round "6.20"]
[White "Schletter, Felix"]
[Black "Zvolanek, Libor"]
[Result "1/2-1/2"]
[ECO "E81"]
[WhiteElo "1975"]
[BlackElo "2130"]
[Annotator "NA RC"]
[PlyCount "32"]
[EventDate "2022.08.14"]
[EventCountry "CZE"]
[SourceTitle "playchess.com"]
[Source "ChessBase"]
[SourceQuality "1"]
[TimeControl "40/5400+30:1800+30"]

1. e4 {[%emt 0:00:05]} d6 {[%emt 0:01:08]} 2. d4 {[%emt 0:00:00]} Nf6 {[%emt 0:01:01]} 3. f3 {[%emt 0:00:00]} g6 {[%emt 0:01:55]} 4. c4 {[%emt 0:00:09]} Bg7 {[%emt 0:02:01]} 5. Nc3 {[%emt 0:00:06]} O-O {[%emt 0:00:18]} 6. Nge2 {[%emt 0:00:08]} e5 {[%emt 0:00:21]} 7. Bg5 {[%emt 0:00:25]} c6 {[%emt 0:04:56]} 8. Qd2 {[%emt 0:00:39]} Qc7 {[%emt 0:07:30]} 9. d5 {[%emt 0:03:19]} a6 {[%emt 0:03:11]} 10. a4 {[%emt 0:00:38]} c5 {[%emt 0:10:28]} 11. g4 {[%emt 0:02:37]} Ne8 {[%emt 0:03:20]} 12. Ng3 {[%emt 0:17:13]} f6 {[%emt 0:03:30]} 13. Be3 {[%emt 0:04:48]} Rf7 {[%emt 0:05:47]} 14. Bd3 {[%emt 0:00:33]} b6 {[%emt 0:00:14]} 15. a5 {[%emt 0:08:43]} bxa5 {[%emt 0:05:40]} 16. Nce2 {[%emt 0:02:27]} Qb6 {[%emt 0:01:51]} 1/2-1/2

[Event "Olomouc Chess Summer Open 2022"]
[Site "Olomouc"]
[Date "2022.08.18"]
[Round "7.16"]
[White "Muzika, Paul"]
[Black "Houska, Jiri"]
[Result "1-0"]
[ECO "B22"]
[WhiteElo "2072"]
[BlackElo "2220"]
[Annotator "NA RC"]
[PlyCount "55"]
[EventDate "2022.08.14"]
[EventCountry "CZE"]
[SourceTitle "playchess.com"]
[Source "ChessBase"]
[SourceQuality "1"]
[TimeControl "40/5400+30:1800+30"]

1. e4 {[%emt 0:00:05]} c5 {[%emt 0:00:54]} 2. c3 {[%emt 0:00:28]} Nf6 {[%emt 0:00:08]} 3. e5 {[%emt 0:00:08]} Nd5 {[%emt 0:00:04]} 4. Nf3 {[%emt 0:00:13]} Nc6 {[%emt 0:00:43]} 5. d4 {[%emt 0:00:13]} cxd4 {[%emt 0:00:02]} 6. cxd4 {[%emt 0:00:08]} d6 {[%emt 0:00:18]} 7. Bc4 {[%emt 0:00:21]} e6 {[%emt 0:00:07]} 8. Qe2 {[%emt 0:00:21]} dxe5 {[%emt 0:04:42]} 9. dxe5 {[%emt 0:00:18]} Bb4+ {[%emt 0:06:58]} 10. Bd2 {[%emt 0:01:01]} Qb6 {[%emt 0:08:37]} 11. O-O {[%emt 0:07:42]} Bxd2 {[%emt 0:00:39]} 12. Nbxd2 {[%emt 0:00:56]} Qxb2 {[%emt 0:02:19]} 13. Rab1 {[%emt 0:01:42]} Qa3 {[%emt 0:00:48]} 14. Ne4 {[%emt 0:23:12]} O-O {[%emt 0:03:31]} 15. Nfg5 {[%emt 0:08:34]} Nxe5 {[%emt 0:19:27]} 16. Nxh7 {[%emt 0:00:57]} Kxh7 {[%emt 0:10:06]} 17. Qh5+ {[%emt 0:01:47]} Kg8 {[%emt 0:00:02]} 18. Qxe5 {[%emt 0:00:22]} f6 {[%emt 0:04:56]} 19. Qh5 {[%emt 0:09:52]} Qe7 {[%emt 0:01:19]} 20. Rb3 {[%emt 0:05:03]} b6 {[%emt 0:04:10]} 21. Rh3 Bb7 {[%emt 0:02:56]} 22. Qh7+ {[%emt 0:13:01]} Kf7 {[%emt 0:00:02]} 23. Rg3 {[%emt 0:00:40]} Rg8 {[%emt 0:00:48]} 24. Rf3 {[%emt 0:08:41]} f5 {[%emt 0:04:36]} 25. Rxf5+ {[%emt 0:03:04]} exf5 {[%emt 0:00:58]} 26. Bxd5+ {[%emt 0:00:44]} Bxd5 {[%emt 0:00:27]} 27. Qxf5+ {[%emt 0:00:10]} Qf6 {[%emt 0:02:48]} 28. Qxd5+ {[%emt 0:00:32]} 1-0